fUSD/lending_fUSD_20260621
["ID","MTS","AMOUNT","RATE_DAILY","PERIOD"]
[425962351,1782045067000,-500.0,0.00027671,2]
[425962357,1782045067000,-3972.63,0.00027671,2]
[425962352,1782045067000,-606.02181238,0.00027671,2]
[425962355,1782045067000,-500.0,0.00027671,2]
[425962354,1782045067000,-616.16,0.00027671,2]
[425962356,1782045067000,-536.77,0.00027671,2]
[425962370,1782045067000,-500.0,0.00027671,2]
[425962369,1782045067000,-4815.29,0.00027671,2]
[425962358,1782045067000,-500.0,0.00027671,2]
[425962361,1782045067000,-500.0,0.00027671,2]
[425962349,1782045067000,-500.0,0.00027671,2]
[425962365,1782045067000,-2255.68,0.00027671,2]
[425962359,1782045067000,-528.95,0.00027671,2]
[425962367,1782045067000,-500.0,0.00027671,2]
[425962371,1782045067000,-500.0,0.00027671,2]
[425962362,1782045067000,-500.0,0.00027671,2]
[425962368,1782045067000,-500.0,0.00027671,2]
[425962360,1782045067000,-3874.09,0.00027671,2]
[425962366,1782045067000,-500.0,0.00027671,2]
[425962363,1782045067000,-1796.48,0.00027671,2]
[425962374,1782045067000,-500.0,0.00027671,2]
[425962373,1782045067000,-500.0,0.00027671,2]
[425962375,1782045067000,-500.0,0.00027671,2]
[425962376,1782045067000,-500.0,0.00027671,2]
[425962372,1782045067000,-1445.92,0.00027671,2]
[425962364,1782045067000,-500.0,0.00027671,2]
[425962353,1782045067000,-1918.32,0.00027671,2]
[425962312,1782045067000,-14378.51,0.00027671,2]
[425962346,1782045067000,-500.0,0.00027671,2]
[425962318,1782045067000,-4794.45,0.00027671,2]
[425962317,1782045067000,-500.0,0.00027671,2]
[425962316,1782045067000,-500.0,0.00027671,2]
[425962319,1782045067000,-515.89666225,0.00027671,2]
[425962321,1782045067000,-8318.01,0.00027671,2]
[425962324,1782045067000,-850.83,0.00027671,2]
[425962325,1782045067000,-506.77,0.00027671,2]
[425962350,1782045067000,-6168.46,0.00027671,2]
[425962326,1782045067000,-829.45,0.00027671,2]
[425962329,1782045067000,-1164.28,0.00027671,2]
[425962331,1782045067000,-500.0,0.00027671,2]
[425962327,1782045067000,-500.0,0.00027671,2]
[425962323,1782045067000,-500.0,0.00027671,2]
[425962322,1782045067000,-500.0,0.00027671,2]
[425962328,1782045067000,-3782.22,0.00027671,2]
[425962330,1782045067000,-500.0,0.00027671,2]
[425962332,1782045067000,-500.0,0.00027671,2]
[425962341,1782045067000,-981.05,0.00027671,2]
[425962340,1782045067000,-2524.57,0.00027671,2]
[425962342,1782045067000,-500.0,0.00027671,2]
[425962343,1782045067000,-500.0,0.00027671,2]
[425962339,1782045067000,-803.94,0.00027671,2]
[425962338,1782045067000,-2000.0,0.00027671,2]
[425962336,1782045067000,-503.44622977,0.00027671,2]
[425962333,1782045067000,-5596.86,0.00027671,2]
[425962337,1782045067000,-500.0,0.00027671,2]
[425962334,1782045067000,-500.0,0.00027671,2]
[425962344,1782045067000,-500.0,0.00027671,2]
[425962335,1782045067000,-2626.67,0.00027671,2]
[425962414,1782045068000,-500.0,0.00027945,2]
[425962418,1782045068000,-500.0,0.00027945,2]
[425962415,1782045068000,-558.94701244,0.00027945,2]
[425962417,1782045068000,-591.28,0.00027945,2]
[425962416,1782045068000,-923.93,0.00027945,2]
[425962408,1782045068000,-534.07,0.00027945,2]
[425962412,1782045068000,-500.0,0.00027945,2]
[425962411,1782045068000,-500.0,0.00027945,2]
[425962410,1782045068000,-813.14,0.00027945,2]
[425962409,1782045068000,-500.0,0.00027945,2]
[425962419,1782045068000,-500.0,0.00027945,2]
[425962413,1782045068000,-500.0,0.00027945,2]
[425962421,1782045068000,-500.0,0.00027945,2]
[425962441,1782045068000,-500.0,0.00027945,2]
[425962422,1782045068000,-500.0,0.00027945,2]
[425962430,1782045068000,-500.0,0.00027945,2]
[425962426,1782045068000,-553.48,0.00027945,2]
[425962432,1782045068000,-500.0,0.00027945,2]
[425962424,1782045068000,-500.0,0.00027945,2]
[425962425,1782045068000,-500.0,0.00027945,2]
[425962428,1782045068000,-500.0,0.00027945,2]
[425962429,1782045068000,-500.0,0.00027945,2]
[425962427,1782045068000,-658.51,0.00027945,2]
[425962431,1782045068000,-500.0,0.00027945,2]
[425962433,1782045068000,-500.0,0.00027945,2]
[425962437,1782045068000,-500.0,0.00027945,2]
[425962435,1782045068000,-500.0,0.00027945,2]
[425962420,1782045068000,-500.0,0.00027945,2]
[425962423,1782045068000,-500.0,0.00027945,2]
[425962406,1782045068000,-500.0,0.00027945,2]
[425962391,1782045068000,-1229.0,0.0002772,2]
[425962404,1782045068000,-500.0,0.00027945,2]
[425962442,1782045068000,-529.11,0.00027945,2]
[425962379,1782045068000,-500.0,0.00027671,2]
[425962377,1782045068000,-6969.81,0.00027671,2]
[425962378,1782045068000,-500.0,0.00027671,2]
[425962380,1782045068000,-500.0,0.00027671,2]
[425962382,1782045068000,-1105.61,0.00027671,2]
[425962383,1782045068000,-500.0,0.00027671,2]
[425962381,1782045068000,-4236.0,0.00027671,2]
[425962387,1782045068000,-500.0,0.00027671,2]
[425962392,1782045068000,-169.97,0.00027844,3]
[425962393,1782045068000,-500.0,0.00027945,2]
[425962389,1782045068000,-1276.0,0.0002772,2]
[425962385,1782045068000,-4085.82,0.00027671,2]
[425962405,1782045068000,-500.0,0.00027945,2]
[425962386,1782045068000,-3908.65,0.00027671,2]
[425962394,1782045068000,-352.82920083,0.00027945,2]
[425962388,1782045068000,-1360.0,0.0002772,2]
[425962390,1782045068000,-383.0,0.0002772,2]
[425962395,1782045068000,-500.0,0.00027945,2]
[425962397,1782045068000,-500.0,0.00027945,2]
[425962396,1782045068000,-500.0,0.00027945,2]
[425962400,1782045068000,-500.0,0.00027945,2]
[425962407,1782045068000,-500.0,0.00027945,2]
[425962401,1782045068000,-500.0,0.00027945,2]
[425962398,1782045068000,-500.0,0.00027945,2]
[425962399,1782045068000,-500.0,0.00027945,2]
[425962403,1782045068000,-500.0,0.00027945,2]
[425962402,1782045068000,-500.0,0.00027945,2]
[425962384,1782045068000,-500.0,0.00027671,2]
[425962444,1782045068000,-500.0,0.00027945,2]
[425962440,1782045068000,-541.69278581,0.00027945,2]
[425962439,1782045068000,-560.08,0.00027945,2]
[425962475,1782045068000,-589.52,0.00027945,2]
[425962479,1782045068000,-500.0,0.00027945,2]
[425962480,1782045068000,-500.0,0.00027945,2]
[425962484,1782045068000,-500.0,0.00027945,2]
[425962483,1782045068000,-500.0,0.00027945,2]
[425962478,1782045068000,-500.0,0.00027945,2]
[425962477,1782045068000,-500.0,0.00027945,2]
[425962482,1782045068000,-500.0,0.00027945,2]
[425962481,1782045068000,-500.0,0.00027945,2]
[425962474,1782045068000,-500.0,0.00027945,2]
[425962476,1782045068000,-500.0,0.00027945,2]
[425962485,1782045068000,-500.0,0.00027945,2]
[425962486,1782045068000,-500.0,0.00027945,2]
[425962473,1782045068000,-500.0,0.00027945,2]
[425962495,1782045068000,-500.0,0.00027945,2]
[425962493,1782045068000,-500.0,0.00027945,2]
[425962494,1782045068000,-573.65,0.00027945,2]
[425962498,1782045068000,-500.0,0.00027945,2]
[425962489,1782045068000,-500.0,0.00027945,2]
[425962492,1782045068000,-500.0,0.00027945,2]
[425962487,1782045068000,-500.0,0.00027945,2]
[425962497,1782045068000,-500.0,0.00027945,2]
[425962434,1782045068000,-500.0,0.00027945,2]
[425962491,1782045068000,-500.0,0.00027945,2]
[425962490,1782045068000,-500.0,0.00027945,2]
[425962499,1782045068000,-500.0,0.00027945,2]
[425962501,1782045068000,-500.0,0.00027945,2]
[425962500,1782045068000,-500.0,0.00027945,2]
[425962496,1782045068000,-500.0,0.00027945,2]
[425962472,1782045068000,-500.0,0.00027945,2]
[425962488,1782045068000,-500.0,0.00027945,2]
[425962467,1782045068000,-500.0,0.00027945,2]
[425962465,1782045068000,-500.0,0.00027945,2]
[425962436,1782045068000,-590.0,0.00027945,2]
[425962438,1782045068000,-500.0,0.00027945,2]
[425962456,1782045068000,-500.0,0.00027945,2]
[425962446,1782045068000,-500.0,0.00027945,2]
[425962445,1782045068000,-362.02966926,0.00027945,2]
[425962457,1782045068000,-500.0,0.00027945,2]
[425962455,1782045068000,-500.0,0.00027945,2]
[425962450,1782045068000,-529.62,0.00027945,2]
[425962448,1782045068000,-500.0,0.00027945,2]
[425962449,1782045068000,-522.63822228,0.00027945,2]
[425962452,1782045068000,-500.0,0.00027945,2]
[425962447,1782045068000,-766.03,0.00027945,2]
[425962453,1782045068000,-514.19,0.00027945,2]
[425962443,1782045068000,-500.0,0.00027945,2]
[425962451,1782045068000,-500.0,0.00027945,2]
[425962471,1782045068000,-608.84,0.00027945,2]
[425962454,1782045068000,-610.79,0.00027945,2]
[425962460,1782045068000,-311.21192565,0.00027945,2]
[425962461,1782045068000,-663.71,0.00027945,2]
[425962468,1782045068000,-500.0,0.00027945,2]
[425962469,1782045068000,-500.0,0.00027945,2]
[425962466,1782045068000,-500.0,0.00027945,2]
[425962458,1782045068000,-500.0,0.00027945,2]
[425962470,1782045068000,-500.0,0.00027945,2]
[425962462,1782045068000,-500.0,0.00027945,2]
[425962464,1782045068000,-716.31,0.00027945,2]
[425962459,1782045068000,-508.17092958,0.00027945,2]
[425962463,1782045068000,-500.0,0.00027945,2]
[425962537,1782045069000,-500.0,0.00027945,2]
[425962531,1782045069000,-500.0,0.00027945,2]
[425962526,1782045069000,-500.0,0.00027945,2]
[425962528,1782045069000,-500.0,0.00027945,2]
[425962533,1782045069000,-421.34418171,0.00027945,2]
[425962534,1782045069000,-500.0,0.00027945,2]
[425962548,1782045069000,-555.93,0.00027945,2]
[425962549,1782045069000,-500.0,0.00027945,2]
[425962538,1782045069000,-500.0,0.00027945,2]
[425962536,1782045069000,-500.0,0.00027945,2]
[425962535,1782045069000,-500.0,0.00027945,2]
[425962547,1782045069000,-500.0,0.00027945,2]
[425962543,1782045069000,-670.78,0.00027945,2]
[425962540,1782045069000,-534.55,0.00027945,2]
[425962542,1782045069000,-500.0,0.00027945,2]
[425962545,1782045069000,-803.29,0.00027945,2]
[425962546,1782045069000,-500.0,0.00027945,2]
[425962544,1782045069000,-500.0,0.00027945,2]
[425962541,1782045069000,-500.0,0.00027945,2]
[425962550,1782045069000,-500.0,0.00027945,2]
[425962561,1782045069000,-500.0,0.00027945,2]
[425962529,1782045069000,-518.40374912,0.00027945,2]
[425962539,1782045069000,-500.0,0.00027945,2]
[425962532,1782045069000,-500.0,0.00027945,2]
[425962521,1782045069000,-500.0,0.00027945,2]
[425962525,1782045069000,-773.43,0.00027945,2]
[425962553,1782045069000,-893.03,0.00027945,2]
[425962510,1782045069000,-500.0,0.00027945,2]
[425962504,1782045069000,-664.19,0.00027945,2]
[425962502,1782045069000,-509.16937564,0.00027945,2]
[425962507,1782045069000,-500.0,0.00027945,2]
[425962508,1782045069000,-500.0,0.00027945,2]
[425962505,1782045069000,-535.03,0.00027945,2]
[425962506,1782045069000,-500.0,0.00027945,2]
[425962511,1782045069000,-330.49927303,0.00027945,2]
[425962503,1782045069000,-500.0,0.00027945,2]
[425962509,1782045069000,-819.78,0.00027945,2]
[425962530,1782045069000,-640.68,0.00027945,2]
[425962515,1782045069000,-1393.02,0.00027945,2]
[425962516,1782045069000,-500.0,0.00027945,2]
[425962512,1782045069000,-500.0,0.00027945,2]
[425962514,1782045069000,-831.45,0.00027945,2]
[425962520,1782045069000,-790.72,0.00027945,2]
[425962513,1782045069000,-500.0,0.00027945,2]
[425962518,1782045069000,-500.0,0.00027945,2]
[425962522,1782045069000,-549.42,0.00027945,2]
[425962517,1782045069000,-500.0,0.00027945,2]
[425962519,1782045069000,-433.36209803,0.00027945,2]
[425962524,1782045069000,-500.0,0.00027945,2]
[425962527,1782045069000,-500.0,0.00027945,2]
[425962523,1782045069000,-698.8,0.00027945,2]
[425962555,1782045069000,-500.0,0.00027945,2]
[425962567,1782045069000,-500.0,0.00027945,2]
[425962552,1782045069000,-1244.82,0.00027945,2]
[425962582,1782045069000,-500.0,0.00027945,2]
[425962588,1782045069000,-500.0,0.00027945,2]
[425962584,1782045069000,-770.99,0.00027945,2]
[425962591,1782045069000,-500.0,0.00027945,2]
[425962585,1782045069000,-1064.53,0.00027945,2]
[425962589,1782045069000,-500.0,0.00027945,2]
[425962592,1782045069000,-500.0,0.00027945,2]
[425962583,1782045069000,-500.0,0.00027945,2]
[425962587,1782045069000,-500.0,0.00027945,2]
[425962594,1782045069000,-567.5,0.00027945,2]
[425962599,1782045069000,-500.0,0.00027945,2]
[425962605,1782045069000,-500.0,0.00027945,2]
[425962595,1782045069000,-500.0,0.00027945,2]
[425962596,1782045069000,-500.0,0.00027945,2]
[425962604,1782045069000,-526.39376755,0.00027945,2]
[425962598,1782045069000,-654.24,0.00027945,2]
[425962600,1782045069000,-500.0,0.00027945,2]
[425962597,1782045069000,-500.0,0.00027945,2]
[425962603,1782045069000,-594.9,0.00027945,2]
[425962601,1782045069000,-500.0,0.00027945,2]
[425962607,1782045069000,-500.0,0.00027945,2]
[425962606,1782045069000,-509.99818067,0.00027945,2]
[425962551,1782045069000,-540.14,0.00027945,2]
[425962593,1782045069000,-506.54922327,0.00027945,2]
[425962590,1782045069000,-500.0,0.00027945,2]
[425962602,1782045069000,-521.92827234,0.00027945,2]
[425962577,1782045069000,-500.0,0.00027945,2]
[425962558,1782045069000,-376.46681217,0.00027945,2]
[425962586,1782045069000,-1092.63,0.00027945,2]
[425962560,1782045069000,-500.0,0.00027945,2]
[425962556,1782045069000,-500.0,0.00027945,2]
[425962554,1782045069000,-500.0,0.00027945,2]
[425962559,1782045069000,-867.75,0.00027945,2]
[425962557,1782045069000,-500.0,0.00027945,2]
[425962568,1782045069000,-500.0,0.00027945,2]
[425962566,1782045069000,-500.0,0.00027945,2]
[425962565,1782045069000,-500.0,0.00027945,2]
[425962564,1782045069000,-500.0,0.00027945,2]
[425962569,1782045069000,-500.0,0.00027945,2]
[425962562,1782045069000,-588.39,0.00027945,2]
[425962563,1782045069000,-500.0,0.00027945,2]
[425962580,1782045069000,-500.0,0.00027945,2]
[425962573,1782045069000,-500.0,0.00027945,2]
[425962574,1782045069000,-4527.98,0.00027945,2]
[425962575,1782045069000,-500.0,0.00027945,2]
[425962572,1782045069000,-732.43,0.00027945,2]
[425962576,1782045069000,-500.0,0.00027945,2]
[425962581,1782045069000,-500.0,0.00027945,2]
[425962579,1782045069000,-981.53,0.00027945,2]
[425962578,1782045069000,-602.92,0.00027945,2]
[425962571,1782045069000,-519.85063571,0.00027945,2]
[425962570,1782045069000,-500.0,0.00027945,2]
[425962646,1782045070000,-500.0,0.00027945,2]
[425962649,1782045070000,-500.0,0.00027945,2]
[425962643,1782045070000,-500.0,0.00027945,2]
[425962654,1782045070000,-500.0,0.00027945,2]
[425962650,1782045070000,-500.0,0.00027945,2]
[425962644,1782045070000,-500.0,0.00027945,2]
[425962648,1782045070000,-500.0,0.00027945,2]
[425962647,1782045070000,-500.0,0.00027945,2]
[425962639,1782045070000,-500.0,0.00027945,2]
[425962638,1782045070000,-500.0,0.00027945,2]
[425962651,1782045070000,-500.0,0.00027945,2]
[425962652,1782045070000,-500.0,0.00027945,2]
[425962645,1782045070000,-500.0,0.00027945,2]
[425962665,1782045070000,-500.0,0.00027945,2]
[425962656,1782045070000,-291.77283641,0.00027945,2]
[425962666,1782045070000,-175.91126475,0.00027945,2]
[425962655,1782045070000,-500.0,0.00027945,2]
[425962667,1782045070000,-3381.02,0.00027945,2]
[425962657,1782045070000,-500.0,0.00027945,2]
[425962658,1782045070000,-500.0,0.00027945,2]
[425962659,1782045070000,-500.0,0.00027945,2]
[425962663,1782045070000,-500.0,0.00027945,2]
[425962662,1782045070000,-525.02,0.00027945,2]
[425962664,1782045070000,-500.0,0.00027945,2]
[425962661,1782045070000,-263.69515248,0.00027945,2]
[425962660,1782045070000,-500.0,0.00027945,2]
[425962636,1782045070000,-500.0,0.00027945,2]
[425962653,1782045070000,-972.04,0.00027945,2]
[425962640,1782045070000,-622.37311134,0.00027945,2]
[425962612,1782045070000,-1106.11,0.00027945,2]
[425962635,1782045070000,-545.39,0.00027945,2]
[425962609,1782045070000,-521.69908372,0.00027945,2]
[425962608,1782045070000,-500.0,0.00027945,2]
[425962616,1782045070000,-3980.31,0.00027945,2]
[425962617,1782045070000,-500.0,0.00027945,2]
[425962610,1782045070000,-599.7,0.00027945,2]
[425962669,1782045070000,-500.0,0.00027945,2]
[425962611,1782045070000,-500.0,0.00027945,2]
[425962615,1782045070000,-223.40872918,0.00027945,2]
[425962613,1782045070000,-1377.34,0.00027945,2]
[425962614,1782045070000,-500.0,0.00027945,2]
[425962618,1782045070000,-500.0,0.00027945,2]
[425962622,1782045070000,-658.11,0.00027945,2]
[425962624,1782045070000,-500.0,0.00027945,2]
[425962623,1782045070000,-508.83,0.00027945,2]
[425962619,1782045070000,-714.95,0.00027945,2]
[425962621,1782045070000,-500.0,0.00027945,2]
[425962620,1782045070000,-500.0,0.00027945,2]
[425962629,1782045070000,-500.0,0.00027945,2]
[425962625,1782045070000,-500.0,0.00027945,2]
[425962626,1782045070000,-765.44,0.00027945,2]
[425962628,1782045070000,-530.32,0.00027945,2]
[425962627,1782045070000,-934.71,0.00027945,2]
[425962641,1782045070000,-500.0,0.00027945,2]
[425962642,1782045070000,-1038.14,0.00027945,2]
[425962631,1782045070000,-500.0,0.00027945,2]
[425962632,1782045070000,-509.08694238,0.00027945,2]
[425962630,1782045070000,-500.0,0.00027945,2]
[425962633,1782045070000,-500.0,0.00027945,2]
[425962634,1782045070000,-500.0,0.00027945,2]
[425962637,1782045070000,-500.0,0.00027945,2]
[425962680,1782045070000,-500.0,0.00027945,2]
[425962671,1782045070000,-500.0,0.00027945,2]
[425962675,1782045070000,-980.22,0.00027945,2]
[425962695,1782045070000,-500.0,0.00027945,2]
[425962705,1782045070000,-500.0,0.00027945,2]
[425962716,1782045070000,-500.0,0.00027945,2]
[425962712,1782045070000,-619.13888945,0.00027945,2]
[425962709,1782045070000,-161.00287,0.00027945,2]
[425962708,1782045070000,-500.0,0.00027945,2]
[425962711,1782045070000,-500.0,0.00027945,2]
[425962707,1782045070000,-521.05,0.00027945,2]
[425962718,1782045070000,-847.94,0.00027945,2]
[425962710,1782045070000,-500.0,0.00027945,2]
[425962717,1782045070000,-500.0,0.00027945,2]
[425962713,1782045070000,-500.0,0.00027945,2]
[425962715,1782045070000,-500.0,0.00027945,2]
[425962701,1782045070000,-532.12523778,0.00027945,2]
[425962714,1782045070000,-543.15,0.00027945,2]
[425962726,1782045070000,-500.0,0.00027945,2]
[425962721,1782045070000,-500.0,0.00027945,2]
[425962724,1782045070000,-519.47637784,0.00027945,2]
[425962674,1782045070000,-500.0,0.00027945,2]
[425962723,1782045070000,-500.0,0.00027945,2]
[425962728,1782045070000,-500.0,0.00027945,2]
[425962729,1782045070000,-500.0,0.00027945,2]
[425962725,1782045070000,-741.63,0.00027945,2]
[425962730,1782045070000,-500.0,0.00027945,2]
[425962727,1782045070000,-500.0,0.00027945,2]
[425962720,1782045070000,-500.0,0.00027945,2]
[425962731,1782045070000,-520.31,0.00027945,2]
[425962732,1782045070000,-500.0,0.00027945,2]
[425962719,1782045070000,-604.53,0.00027945,2]
[425962699,1782045070000,-500.0,0.00027945,2]
[425962722,1782045070000,-934.78,0.00027945,2]
[425962703,1782045070000,-500.0,0.00027945,2]
[425962704,1782045070000,-500.0,0.00027945,2]
[425962672,1782045070000,-500.0,0.00027945,2]
[425962670,1782045070000,-500.0,0.00027945,2]
[425962676,1782045070000,-500.0,0.00027945,2]
[425962679,1782045070000,-500.0,0.00027945,2]
[425962678,1782045070000,-500.0,0.00027945,2]
[425962677,1782045070000,-500.0,0.00027945,2]
[425962668,1782045070000,-500.0,0.00027945,2]
[425962682,1782045070000,-902.56,0.00027945,2]
[425962684,1782045070000,-500.0,0.00027945,2]
[425962683,1782045070000,-500.0,0.00027945,2]
[425962691,1782045070000,-762.64,0.00027945,2]
[425962681,1782045070000,-936.56,0.00027945,2]
[425962686,1782045070000,-500.0,0.00027945,2]
[425962673,1782045070000,-500.0,0.00027945,2]
[425962692,1782045070000,-500.0,0.00027945,2]
[425962706,1782045070000,-598.59,0.00027945,2]
[425962685,1782045070000,-500.0,0.00027945,2]
[425962702,1782045070000,-500.0,0.00027945,2]
[425962698,1782045070000,-500.0,0.00027945,2]
[425962696,1782045070000,-500.0,0.00027945,2]
[425962694,1782045070000,-1598.41,0.00027945,2]
[425962700,1782045070000,-500.0,0.00027945,2]
[425962689,1782045070000,-538.33,0.00027945,2]
[425962690,1782045070000,-500.0,0.00027945,2]
[425962688,1782045070000,-500.0,0.00027945,2]
[425962687,1782045070000,-500.0,0.00027945,2]
[425962693,1782045070000,-500.0,0.00027945,2]
[425962697,1782045070000,-500.0,0.00027945,2]
[425962756,1782045071000,-500.0,0.00027945,2]
[425962762,1782045071000,-500.0,0.00027945,2]
[425962755,1782045071000,-640.28589283,0.00027945,2]
[425962750,1782045071000,-500.0,0.00027945,2]
[425962769,1782045071000,-500.0,0.00027945,2]
[425962759,1782045071000,-500.0,0.00027945,2]
[425962758,1782045071000,-500.0,0.00027945,2]
[425962760,1782045071000,-500.0,0.00027945,2]
[425962761,1782045071000,-500.0,0.00027945,2]
[425962767,1782045071000,-500.0,0.00027945,2]
[425962766,1782045071000,-500.0,0.00027945,2]
[425962764,1782045071000,-526.49755517,0.00027945,2]
[425962763,1782045071000,-620.22,0.00027945,2]
[425962768,1782045071000,-500.0,0.00027945,2]
[425962770,1782045071000,-500.0,0.00027945,2]
[425962771,1782045071000,-500.0,0.00027945,2]
[425962773,1782045071000,-500.0,0.00027945,2]
[425962757,1782045071000,-500.0,0.00027945,2]
[425962765,1782045071000,-500.0,0.00027945,2]
[425962752,1782045071000,-500.0,0.00027945,2]
[425962736,1782045071000,-500.0,0.00027945,2]
[425962753,1782045071000,-500.0,0.00027945,2]
[425962744,1782045071000,-822.03,0.00027945,2]
[425962739,1782045071000,-826.36,0.00027945,2]
[425962735,1782045071000,-732.04,0.00027945,2]
[425962734,1782045071000,-500.0,0.00027945,2]
[425962741,1782045071000,-500.0,0.00027945,2]
[425962737,1782045071000,-500.0,0.00027945,2]
[425962738,1782045071000,-500.0,0.00027945,2]
[425962772,1782045071000,-500.0,0.00027945,2]
[425962754,1782045071000,-215.903318,0.00027945,7]
[425962740,1782045071000,-500.0,0.00027945,2]
[425962733,1782045071000,-500.0,0.00027945,2]
[425962742,1782045071000,-500.0,0.00027945,2]
[425962745,1782045071000,-500.0,0.00027945,2]
[425962749,1782045071000,-41216.394702,0.00027945,2]
[425962751,1782045071000,-500.0,0.00027945,2]
[425962746,1782045071000,-500.0,0.00027945,2]
[425962748,1782045071000,-500.0,0.00027945,2]
[425962747,1782045071000,-500.0,0.00027945,2]
[425962743,1782045071000,-500.0,0.00027945,2]
[425962774,1782045071000,-500.0,0.00027945,2]
[425962805,1782045071000,-500.0,0.00027945,2]
[425962780,1782045071000,-500.0,0.00027945,2]
[425962801,1782045071000,-500.0,0.00027945,2]
[425962797,1782045071000,-500.0,0.00027945,2]
[425962800,1782045071000,-500.0,0.00027945,2]
[425962802,1782045071000,-1423.29,0.00027945,2]
[425962804,1782045071000,-533.72130013,0.00027945,2]
[425962803,1782045071000,-500.0,0.00027945,2]
[425962807,1782045071000,-564.53,0.00027945,2]
[425962808,1782045071000,-500.0,0.00027945,2]
[425962799,1782045071000,-500.0,0.00027945,2]
[425962809,1782045071000,-500.0,0.00027945,2]
[425962806,1782045071000,-500.0,0.00027945,2]
[425962811,1782045071000,-500.0,0.00027945,2]
[425962816,1782045071000,-742.97,0.00027945,2]
[425962814,1782045071000,-952.51,0.00027945,2]
[425962815,1782045071000,-500.0,0.00027945,2]
[425962813,1782045071000,-500.0,0.00027945,2]
[425962812,1782045071000,-500.0,0.00027945,2]
[425962817,1782045071000,-500.0,0.00027945,2]
[425962810,1782045071000,-500.0,0.00027945,2]
[425962798,1782045071000,-500.0,0.00027945,2]
[425962775,1782045071000,-678.71,0.00027945,2]
[425962794,1782045071000,-500.0,0.00027945,2]
[425962778,1782045071000,-500.0,0.00027945,2]
[425962777,1782045071000,-500.0,0.00027945,2]
[425962776,1782045071000,-500.0,0.00027945,2]
[425962779,1782045071000,-500.0,0.00027945,2]
[425962781,1782045071000,-500.0,0.00027945,2]
[425962795,1782045071000,-500.0,0.00027945,2]
[425962788,1782045071000,-583.83,0.00027945,2]
[425962787,1782045071000,-500.0,0.00027945,2]
[425962782,1782045071000,-577.38606193,0.00027945,2]
[425962783,1782045071000,-500.0,0.00027945,2]
[425962786,1782045071000,-500.0,0.00027945,2]
[425962789,1782045071000,-302.52690969,0.00027945,2]
[425962784,1782045071000,-500.0,0.00027945,2]
[425962791,1782045071000,-500.0,0.00027945,2]
[425962790,1782045071000,-8081.3,0.00027945,2]
[425962793,1782045071000,-530.00927069,0.00027945,2]
[425962796,1782045071000,-500.0,0.00027945,2]
[425962792,1782045071000,-500.0,0.00027945,2]
[425962785,1782045071000,-500.0,0.00027945,2]
[425962847,1782045072000,-500.0,0.00027945,2]